fUSD/lending_fUSD_20250523
["ID","MTS","AMOUNT","RATE_DAILY","PERIOD"]
[362124006,1748008231609,-207.0,0.0002096,2]
[362124007,1748008231618,-200.0,0.00021,2]
[362124008,1748008231628,-4400.64145235,0.00021011,2]
[362124009,1748008231638,-207.0,0.0002148,2]
[362124010,1748008231647,-23900.0,0.00021868,2]
[362124011,1748008231656,-1680.0,0.0002188,2]
[362124012,1748008231666,-200.0,0.0002189,2]
[362124013,1748008231675,-500.0,0.0002194,2]
[362124014,1748008231684,-187.19,0.00021945,30]
[362124015,1748008231693,-150.0,0.00021995,2]
[362124016,1748008231704,-200.0,0.00022,2]
[362124017,1748008231713,-1000.0,0.00022002,2]
[362124018,1748008231723,-207.0,0.0002201,2]
[362124019,1748008231733,-150.0,0.00022024,7]
[362124020,1748008231742,-2362.73,0.00022026,2]
[362124021,1748008231752,-4000.0,0.00022046,2]
[362124022,1748008231762,-1131.15,0.00022072,2]
[362124023,1748008231771,-2334.84,0.00022076,2]
[362124024,1748008231783,-8002.92,0.00022087,2]
[362124025,1748008231793,-268.11,0.00022088,2]
[362124026,1748008231802,-1630.49,0.00022109,2]
[362124027,1748008231815,-4400.64145235,0.00022122,2]
[362124028,1748008231825,-250.0,0.00022146,2]
[362124029,1748008231834,-1431.83974,0.000223,2]
[362124030,1748008231844,-207.0,0.0002253,2]
[362124031,1748008231854,-845.85,0.00022975,2]
[362124032,1748008231864,-556.13663394,0.00023,8]
[362124033,1748008231873,-556.13663374,0.00023,8]
[362124034,1748008231883,-556.13663374,0.00023,8]
[362124035,1748008231894,-207.0,0.0002305,2]
[362124036,1748008231904,-303.0,0.000231,2]
[362124037,1748008231913,-170.59,0.0002312,2]
[362124038,1748008231923,-1019.91,0.00023124,2]
[362124039,1748008231932,-170.59,0.00023143,2]
[362124040,1748008231941,-170.59,0.00023166,2]
[362124041,1748008231950,-556.13663374,0.00023176,8]
[362124042,1748008231960,-170.59,0.00023189,2]
[362124043,1748008231969,-170.59,0.00023212,2]
[362124044,1748008231979,-4400.64145235,0.00023233,2]
[362124045,1748008231988,-170.59,0.00023235,2]
[362124046,1748008231998,-200.0,0.0002351,2]
[362124047,1748008232008,-207.0,0.0002358,2]
[362124048,1748008232017,-173.35,0.00023836,2]
[362124049,1748008232028,-556.13663374,0.00023934,10]
[362124050,1748008232037,-303.0,0.0002394,2]
[362124051,1748008232047,-207.0,0.000241,2]
[362124052,1748008232056,-200.0,0.000241,2]
[362124053,1748008232065,-156.41,0.00024149,2]
[362124054,1748008232075,-4400.64145235,0.00024344,2]
[362124055,1748008232084,-200.0,0.0002451,2]
[362124056,1748008232093,-207.0,0.00024561,2]
[362124057,1748008232103,-379.83455137,0.000246,2]
[362124058,1748008232112,-207.0,0.0002463,2]
[362124059,1748008232121,-556.13663374,0.00024693,11]
[362124060,1748008232130,-173.86776368,0.00024699,2]
[362124061,1748008232140,-187.90864142,0.00024699,2]
[362124062,1748008232149,-254.32184574,0.00024699,2]
[362124063,1748008232159,-624.82167866,0.00024699,3]
[362124064,1748008232168,-176665.21088027,0.00024699,3]
[362124065,1748008232288,-145850.85458815,0.00024699,3]
[362124066,1748008236642,-23687.9351,0.00024699,3]
[362124067,1748008236667,-1000.0,0.00024699,3]
[362124085,1748008237600,-43668.00000001,0.00024699,3]
[362124086,1748008237695,-178.91956118,0.00024692,2]
[362124088,1748008237705,-178.02529202,0.00024692,2]
[362124090,1748008237714,-2153.36629165,0.00024699,3]
[362124177,1748008239602,-324.67,0.00024421,2]
[362124178,1748008239611,-1442.89895,0.00024699,3]
[362124179,1748008239622,-4218.20109696,0.00024699,3]
[362124180,1748008239634,-385.01,0.00024699,3]
[362124181,1748008239648,-54625.00000001,0.00024699,3]
[362124182,1748008239724,-3950.4085092,0.00024699,3]
[362124183,1748008239904,-8.21322023,0.00024699,3]
[362124202,1748008242529,-3084.78400573,0.00024699,3]
[362124310,1748008245417,-16408.251,0.00024699,3]
[362124311,1748008245690,-256075.26832646,0.00024699,3]
[362124312,1748008245700,-403.7107323,0.000247,2]
[362124313,1748008245710,-1000.0,0.00024752,2]
[362124314,1748008245721,-217.32620408,0.0002479,2]
[362124315,1748008245731,-666.0,0.00024799,2]
[362124316,1748008245741,-151.0,0.000248,7]
[362124317,1748008245751,-304.381215,0.000248,7]
[362124318,1748008245761,-304.381215,0.000248,7]
[362124319,1748008245773,-151.0,0.000248,7]
[362124320,1748008245783,-151.0,0.000248,7]
[362124321,1748008245797,-203.343402,0.000248,7]
[362124322,1748008245808,-151.0,0.000248,7]
[362124323,1748008245819,-151.0,0.000248,7]
[362124324,1748008245830,-151.0,0.000248,7]
[362124325,1748008245839,-1400.0,0.000248,9]
[362124326,1748008245849,-151.0,0.000248,7]
[362124327,1748008245859,-151.0,0.000248,7]
[362124328,1748008245869,-308.175516,0.000248,7]
[362124329,1748008245879,-100348.74746059,0.000248,3]
[362124330,1748008245968,-304.27883793,0.000248,3]
[362124331,1748008245979,-1200.20000001,0.000248,3]
[362124332,1748008245990,-5954.20881199,0.000248,3]
[362124333,1748008246022,-45976.48394879,0.000248,3]
[362124334,1748008246037,-5148.276,0.000248,3]
[362124335,1748008246052,-2181.0,0.000248,3]
[362124336,1748008298465,250.0,0.00015,2]
[362124337,1748008313302,-767.9241447,0.00020495,2]
[362124340,1748008687902,1130.597614,7.945e-05,2]
[362124341,1748008687938,575.70382,7.945e-05,2]
[362124342,1748008803196,2009.0,0.00025,90]
[362124344,1748008876293,197.15,0.00013699,2]
[362124345,1748009056881,168.0662905,7.5e-07,2]
[362124346,1748009153098,-197.15,0.00020187,2]
[362124347,1748009153120,-250.0,0.00021313,2]
[362124348,1748009153145,-208.0,0.00021561,2]
[362124349,1748009153167,-250.0,0.00022021,2]
[362124350,1748009153187,-250.0,0.00022206,2]
[362124351,1748009153451,-158.1876935,0.00022339,2]
[362124352,1748009153473,-300.0,0.00022439,2]
[362124353,1748009153496,-1200.0,0.00022439,2]
[362124354,1748009153519,-300.0,0.00022439,2]
[362124355,1748009153541,-500.0,0.0002244,2]
[362124356,1748009153563,-500.0,0.0002244,2]
[362124357,1748009153585,-500.0,0.0002244,2]
[362124358,1748009153606,-500.0,0.0002244,2]
[362124359,1748009153626,-500.0,0.0002244,2]
[362124360,1748009153647,-156.8078,0.000225,2]
[362124361,1748009153669,-23900.0,0.00022524,2]
[362124362,1748009153691,-5186.26,0.0002254,2]
[362124363,1748009153713,-350.735,0.0002254,2]
[362124364,1748009153734,-158.1876935,0.0002262,2]
[362124365,1748009153755,-254.3,0.00022684,2]
[362124366,1748009153777,-2466.40522404,0.000229,2]
[362124367,1748009153799,-276.91953449,0.000229,2]
[362124368,1748009153821,-6758.16926292,0.000229,2]
[362124369,1748009153841,-158.1876935,0.000229,2]
[362124370,1748009153863,-181.48644735,0.00022999,2]
[362124371,1748009153884,-207.67771625,0.00022999,2]
[362124372,1748009153904,-1155.0,0.00022999,2]
[362124373,1748009153926,-986.52370196,0.00023,3]
[362124374,1748009153947,-4890.31698249,0.00023,2]
[362124375,1748009159086,-104441.18412153,0.00023,2]
[362124376,1748009239096,-1062.36,0.0002105,2]
[362124377,1748009239117,-352.32386059,0.000229,2]
[362124378,1748009239138,-500.0,0.00022944,2]
[362124379,1748009239170,-407.93726836,0.00022999,2]
[362124380,1748009239192,-300.0,0.00022999,2]
[362124381,1748009239213,-21487.29937077,0.00023,2]
[362124384,1748009369251,-308.28337806,0.0002095,2]
[362124385,1748009369274,-249.22758105,0.0002095,2]
[362124386,1748009369295,-199345.80299289,0.00021,2]
[362124387,1748009374083,-12013.47994,0.00021,2]
[362124395,1748009431760,-346.03777056,0.000209,2]
[362124396,1748009431770,-151.16,0.0002099,2]
[362124397,1748009431780,-151.16,0.0002099,2]
[362124398,1748009431790,-151.16,0.0002099,2]
[362124399,1748009431799,-151.16,0.0002099,2]
[362124400,1748009431808,-151.16,0.0002099,2]
[362124401,1748009431820,-151.16,0.0002099,2]
[362124402,1748009431830,-151.16,0.0002099,2]
[362124403,1748009431839,-151.16,0.0002099,2]
[362124404,1748009431849,-151.16,0.0002099,2]
[362124405,1748009431859,-151.16,0.0002099,2]
[362124406,1748009431868,-151.16,0.0002099,2]
[362124407,1748009431878,-151.16,0.0002099,2]
[362124408,1748009431887,-151.16,0.0002099,2]
[362124409,1748009431896,-151.16,0.0002099,2]
[362124410,1748009431905,-151.16,0.0002099,2]
[362124411,1748009431915,-151.16,0.0002099,2]
[362124412,1748009431924,-151.16,0.0002099,2]
[362124413,1748009431934,-151.16,0.0002099,2]
[362124414,1748009431944,-151.16,0.0002099,2]
[362124415,1748009431953,-151.16,0.0002099,2]
[362124416,1748009431962,-151.16,0.0002099,2]
[362124417,1748009431972,-151.16,0.0002099,2]
[362124418,1748009431982,-151.16,0.0002099,2]
[362124419,1748009431991,-6682.93,0.0002099,2]
[362124420,1748009432000,-6682.93,0.0002099,2]
[362124421,1748009432010,-217.32620408,0.0002099,2]
[362124423,1748009432019,-1200.0,0.00020999,2]
[362124424,1748009432029,-300.0,0.00020999,2]
[362124425,1748009432038,-450557.08170788,0.00021,2]
[362124426,1748009432241,-2623.85528656,0.00021,2]
[362124427,1748009432252,-278.1474318,0.00021,2]
[362124428,1748009432264,-962.1341602,0.00021,2]
[362124430,1748009432315,-136364.38468977,0.00021,2]
[362124432,1748009432325,-49034.03334165,0.00021,2]
[362124434,1748009432336,-1097.3772,0.00021,2]
[362124436,1748009432347,-1163.02145408,0.00021,2]
[362124460,1748009432698,-1281.35410347,0.00021,2]
[362124465,1748009437916,-6082.35233661,0.000209,2]
[362124466,1748009437926,-300.0,0.00020999,2]
[362124467,1748009437936,-48490.77859947,0.00021,2]
[362124468,1748009438159,-207049.3025688,0.00021,2]
[362124470,1748009439826,-103200.0,0.00021,2]
[362124471,1748009439938,-17683.61489306,0.00021,2]
[362124472,1748009440062,-775.065,0.00021,2]
[362124473,1748009440075,-554.65748046,0.00021,2]
[362124474,1748009440086,-10918.99999999,0.00021,2]
[362124475,1748009440097,-54843.99999998,0.00021,2]
[362124476,1748009440181,-994.9000003,0.00021,2]
[362124489,1748009442753,-33370.4965576,0.00021,2]
[362124492,1748009443015,-104475.89554385,0.00021,2]
[362124502,1748009443119,-81.96592966,0.00021,2]
[362124514,1748009445695,-2664.0,0.000186,2]
[362124515,1748009445705,-5561.0,0.000191,3]
[362124516,1748009445715,-5561.0,0.000195,5]
[362124517,1748009445725,-1685.60134099,0.000209,2]
[362124518,1748009445735,-318301.87947754,0.00021,2]
[362124519,1748009445830,-17947.975798,0.00021,2]
[362124520,1748009446081,-568.25057653,0.00021,2]
[362124636,1748009822593,-324.67,0.00027473,120]
[362124637,1748009822651,-156.41,0.00027838,120]
[362124638,1748009906037,177.43,0.00013699,2]
[362124640,1748009948026,881.6498895,7.945e-05,2]
[362124641,1748009948049,1861.5931995,7.945e-05,2]
[362124642,1748009955709,-650.0,0.00028,30]
[362124644,1748010304891,400.83762606,0.00019899,30]
[362124646,1748010417817,1368.49899995,0.00015,14]
[362124647,1748010434131,-1166.9,0.00018558,2]
[362124648,1748010434153,-200.0,0.00019228,2]
[362124649,1748010434178,-1800.0,0.000197,7]
[362124650,1748010434199,-164.63034405,0.00019799,2]
[362124651,1748010434220,-340.29319549,0.000198,7]
[362124652,1748010441138,-150.0,0.00019203,7]
[362124653,1748010441162,-3359.70680451,0.000198,7]
[362124654,1748010441185,-250.0,0.00019858,2]
[362124655,1748010441207,-308.41454593,0.000199,2]
[362124656,1748010441228,-610.40634541,0.000199,2]
[362124657,1748010441249,-271.56523736,0.000199,2]
[362124658,1748010441271,-5600.0,0.000199,7]
[362124659,1748010441293,-200.0,0.00019947,2]
[362124660,1748010441314,-500.0,0.00019973,2]
[362124661,1748010441334,-500.0,0.00019973,2]
[362124662,1748010441356,-500.0,0.00019973,2]
[362124663,1748010441377,-200.0,0.00019978,2]
[362124664,1748010441398,-221.0,0.00019993,2]
[362124665,1748010441420,-6977.51287648,0.00019994,2]
[362124670,1748010528202,194.8,0.00024923,120]
[362124671,1748010569135,-177.30303458,0.00019894,2]
[362124672,1748010569156,-188.68776602,0.00019899,2]
[362124673,1748010569178,-300.0,0.00019899,2]
[362124674,1748010569200,-200.0,0.000199,2]
[362124675,1748010569223,-188.68776601,0.000199,2]
[362124676,1748010569243,-269.86272768,0.000199,2]
[362124677,1748010569266,-4076.33469608,0.000199,2]
[362124678,1748010569289,-194.8,0.00019939,2]
[362124679,1748010569311,-200.0,0.0001995,2]
[362124680,1748010569331,-1005.66,0.00019956,2]
[362124681,1748010569359,-500.0,0.00019999,2]
[362124682,1748010569385,-181.27751163,0.00019999,2]
[362124695,1748010631801,-8483.66425144,0.000199,2]
[362124696,1748010631811,-151.16,0.0001999,2]
[362124697,1748010631821,-151.16,0.0001999,2]
[362124698,1748010631833,-151.16,0.0001999,2]
[362124699,1748010631843,-151.16,0.0001999,2]
[362124700,1748010631852,-151.16,0.0001999,2]
[362124701,1748010631862,-318.72248837,0.00019999,2]
[362124702,1748010631872,-500.0,0.00019999,2]
[362124703,1748010631881,-302.18483706,0.00019999,2]
[362124704,1748010631891,-500.0,0.00019999,2]
[362124705,1748010631900,-500.0,0.00019999,2]
[362124706,1748010631910,-500.0,0.00019999,2]
[362124707,1748010631920,-500.0,0.00019999,2]
[362124708,1748010631930,-500.0,0.00019999,2]
[362124716,1748010632158,-500.0,0.00019999,2]
[362124718,1748010632167,-500.0,0.00019999,2]
[362124720,1748010632177,-590.35243612,0.00019999,2]
[362124722,1748010632187,-500.0,0.00019999,2]
[362124723,1748010632196,-500.0,0.00019999,2]
[362124725,1748010632205,-500.0,0.00019999,2]
[362124727,1748010632214,-500.0,0.00019999,2]
[362124728,1748010632223,-500.0,0.00019999,2]
[362124730,1748010632232,-500.0,0.00019999,2]
[362124732,1748010632240,-500.0,0.00019999,2]
[362124733,1748010632247,-500.0,0.00019999,2]
[362124735,1748010632256,-10219.26494622,0.0002,2]
[362124737,1748010632265,-482560.79158837,0.0002,2]
[362124739,1748010632276,-9243.48080264,0.0002,2]
[362124761,1748010632527,-12698.67929732,0.0002,2]
[362124775,1748010637773,-1554.86182,0.0002,2]
[362124777,1748010638163,-207.75838301,0.0001999,2]
[362124778,1748010638172,-200.22201018,0.0002,2]
[362124780,1748010639956,-21968.00000003,0.0002,2]
[362124781,1748010640438,-400.66385334,0.0002,2]
[362124782,1748010640450,-772.64,0.0002,2]
[362124800,1748010645711,-25760.30000005,0.0002,2]
[362124801,1748010645810,-5097.57929718,0.0002,2]
[362124802,1748010646134,-62828.14533905,0.0002,2]
[362124803,1748010935172,10000.0,0.00027397,120]
[362124805,1748011239215,336.2128,0.00016,2]
[362124806,1748011286964,-194.8,0.00027416,120]
[362124807,1748011287030,-325.0,0.000278,120]
[362124808,1748011287071,-300.0,0.00028,120]
[362124810,1748011294033,183.89,0.00013699,2]
[362124811,1748011296781,-19943.51,0.00018792,2]
[362124812,1748011296804,-19418.7,0.00018834,2]
[362124813,1748011296825,-1422.3,0.00018867,2]
[362124814,1748011296846,-558.15,0.00018867,2]
[362124815,1748011296872,-4530.26,0.00018901,2]
[362124816,1748011297110,-1580.58,0.00019,2]
[362124817,1748011297136,-183.5931408,0.00019011,2]
[362124818,1748011297157,-4064.88,0.00019095,2]
[362124819,1748011297179,-833.58,0.00019111,2]
[362124820,1748011297202,-1000.0,0.00019127,2]
[362124821,1748011297224,-609.0,0.00019141,2]
[362124822,1748011297248,-300.0,0.00019141,2]
[362124823,1748011297269,-3737.07,0.00019142,2]
[362124824,1748011297291,-4025.27,0.00019158,2]
[362124825,1748011297312,-2148.83,0.00019172,2]
[362124826,1748011297333,-1500.0,0.00019178,2]
[362124827,1748011297354,-200.0,0.00019199,2]
[362124828,1748011297376,-246.71,0.00019212,2]
[362124829,1748011297397,-163.95,0.00019668,2]
[362124830,1748011297418,-150.0,0.00019683,2]
[362124831,1748011297438,-3442.42023102,0.000198,2]
[362124832,1748011297459,-319.47747817,0.000198,2]
[362124833,1748011297480,-207.0,0.00019832,2]
[362124834,1748011297501,-387.98368964,0.000199,2]
[362124835,1748011297523,-10112.41813005,0.000199,2]
[362124836,1748011297544,-3932.94984356,0.000199,2]
[362124837,1748011297565,-168.28317843,0.000199,2]
[362124838,1748011297587,-325.55197436,0.000199,2]
[362124839,1748011297608,-4000.0,0.00019919,2]
[362124840,1748011297629,-532.53,0.00019931,2]
[362124841,1748011297652,-206.06,0.00019935,2]
[362124842,1748011297673,-776.16288555,0.00019967,2]
[362124843,1748011297693,-185.53,0.00019968,2]
[362124844,1748011297714,-500.0,0.00019988,2]
[362124845,1748011297741,-500.0,0.00019988,2]
[362124846,1748011297764,-342.18143564,0.00019988,2]
[362124847,1748011297791,-500.0,0.00019988,2]
[362124848,1748011297822,-500.0,0.00019988,2]
[362124849,1748011297851,-500.0,0.00019988,2]
[362124850,1748011297881,-500.0,0.00019988,2]
[362124851,1748011297908,-500.0,0.00019988,2]
[362124852,1748011297936,-500.0,0.00019988,2]
[362124853,1748011297964,-500.0,0.00019988,2]
[362124854,1748011297991,-500.0,0.00019988,2]
[362124855,1748011298019,-500.0,0.00019988,2]
[362124856,1748011298046,-500.0,0.00019988,2]
[362124857,1748011298073,-500.0,0.00019988,2]
[362124858,1748011298100,-500.0,0.00019988,2]
[362124859,1748011298129,-504.9167049,0.00019988,2]
[362124860,1748011298156,-500.0,0.00019988,2]
[362124861,1748011298183,-500.0,0.00019988,2]
[362124862,1748011298210,-500.0,0.00019988,2]
[362124863,1748011298242,-500.0,0.00019988,2]
[362124864,1748011298270,-500.0,0.00019988,2]
[362124865,1748011298297,-500.0,0.00019988,2]
[362124866,1748011298325,-500.0,0.00019988,2]
[362124867,1748011298351,-500.0,0.00019988,2]
[362124868,1748011298379,-500.0,0.00019988,2]
[362124869,1748011298406,-500.0,0.00019988,2]
[362124870,1748011298432,-500.0,0.00019988,2]
[362124871,1748011298458,-500.0,0.00019988,2]
[362124872,1748011298485,-500.0,0.00019988,2]
[362124873,1748011298512,-500.0,0.00019988,2]
[362124874,1748011298538,-500.0,0.00019988,2]
[362124875,1748011298564,-500.0,0.00019988,2]
[362124876,1748011298591,-500.0,0.00019988,2]
[362124877,1748011298617,-500.0,0.00019988,2]
[362124878,1748011298644,-500.0,0.00019988,2]
[362124879,1748011298671,-500.0,0.00019988,2]
[362124880,1748011298696,-150.0,0.00019988,2]
[362124881,1748011298717,-38758.56275849,0.0001999,2]
[362124882,1748011298737,-194.44095504,0.0001999,2]
[362124883,1748011298758,-1000.0,0.00019999,2]
[362124884,1748011298779,-202.46,0.00019999,2]
[362124885,1748011298801,-509681.1812583,0.0002,2]
[362124886,1748011298824,-53953.50633605,0.0002,2]
[362124890,1748011405892,-200.0,0.00018867,2]
[362124891,1748011405914,-776.16288556,0.00019863,2]
[362124892,1748011405937,-381.12959967,0.000199,2]
[362124893,1748011405959,-9101.176317,0.000199,2]
[362124894,1748011405987,-250.0,0.0001995,2]
[362124895,1748011406010,-200.0,0.0001995,2]
[362124896,1748011406031,-200.0,0.00019997,2]
[362124897,1748011406053,-150.0,0.00019997,2]
[362124898,1748011406075,-233.0579103,0.00019999,2]
[362124899,1748011406102,-500.0,0.00019999,2]
[362124900,1748011406131,-500.0,0.00019999,2]
[362124901,1748011406158,-500.0,0.00019999,2]
[362124902,1748011406187,-565.49167049,0.00019999,2]
[362124903,1748011406210,-597493.60575712,0.0002,2]
[362124905,1748011406233,-63439.63704283,0.0002,2]
[362124906,1748011406255,-1299.10818,0.0002,2]
[362124907,1748011406276,-11013.98,0.00020006,2]
[362124908,1748011406298,-5855.71,0.00020025,2]
[362124909,1748011406320,-3822.11,0.00020101,2]
[362124910,1748011406341,-1864.11,0.00020106,2]
[362124911,1748011406362,-476.99,0.00020121,2]
[362124912,1748011406384,-1943.29,0.00020133,2]
[362124913,1748011406406,-183.89,0.00020187,2]
[362124914,1748011406427,-259.54,0.00020211,2]
[362124915,1748011406451,-259.54,0.00020217,2]
[362124916,1748011406732,-259.54,0.00020222,2]
[362124917,1748011406756,-259.54,0.00020227,2]
[362124918,1748011406778,-150.0,0.00020228,2]
[362124919,1748011406800,-259.54,0.00020233,2]
[362124920,1748011406822,-259.54,0.00020238,2]
[362124921,1748011406845,-259.54,0.00020243,2]
[362124922,1748011406868,-259.54,0.00020249,2]
[362124923,1748011406906,-259.54,0.00020254,2]
[362124924,1748011406929,-501.0,0.00020259,2]
[362124925,1748011406954,-259.54,0.00020259,2]
[362124926,1748011406983,-259.54,0.00020264,2]
[362124927,1748011407007,-259.54,0.0002027,2]
[362124928,1748011407035,-259.54,0.00020275,2]
[362124929,1748011407060,-259.54,0.0002028,2]
[362124930,1748011407084,-259.54,0.00020286,2]
[362124931,1748011407107,-259.54,0.00020291,2]
[362124932,1748011407131,-259.54,0.00020296,2]
[362124933,1748011407155,-259.54,0.00020302,2]
[362124934,1748011407178,-225.0,0.00020306,2]
[362124935,1748011407202,-259.54,0.00020307,2]
[362124936,1748011407224,-319.0,0.00020309,2]
[362124937,1748011407248,-259.54,0.00020312,2]
[362124938,1748011407270,-2664.75063703,0.00020482,2]
[362124944,1748011418448,-324.20405992,0.00016949,2]
[362124946,1748011423072,-221.67624742,0.00016949,2]
[362124948,1748011426193,-194.85052597,0.00016949,2]
[362124950,1748011427648,-226.32028476,0.00016949,2]
[362124952,1748011430529,-168.47132671,0.00016949,2]
[362124953,1748011431979,-89.96755522,0.00016949,2]
[362124955,1748011432002,-136.27700285,0.00019213,2]
[362124956,1748011434553,-315.27128866,0.00019213,2]
[362124959,1748011439286,-169.51201583,0.00019213,2]
[362124961,1748011441263,-218.59695874,0.00019213,2]
[362124962,1748011443797,-162.05176874,0.00019213,2]
[362124963,1748011445602,-223.78096518,0.00019213,2]
[362124964,1748011445626,-9.13227196,0.00019848,2]
[362124966,1748011446916,-240.86772804,0.00019848,2]
[362124967,1748011446940,-49.62633188,0.00019848,2]
[362124987,1748011745102,-1350.23738602,0.00019,2]
[362124988,1748011757106,-649.76261398,0.00019,2]
[362124989,1748011757127,-200.0,0.00019095,2]
[362124990,1748011757149,-150.37366812,0.00019848,2]
[362124991,1748011757170,-159.61906468,0.00019999,2]
[362124992,1748011757191,-776.16288556,0.00020003,2]
[362124993,1748011757212,-200.0,0.0002035,2]
[362124994,1748011757233,-350.0,0.00020462,2]
[362124995,1748011757254,-1468.35489194,0.00020482,2]
[362124996,1748011762198,-15.90247103,0.00020482,2]
[362124997,1748011762219,-280.588,0.00020482,2]
[362124998,1748011762240,-776.16288556,0.00020727,2]
[362124999,1748011762264,-10060.70398155,0.00020795,2]
[362125000,1748011762290,-229.4990745,0.00020795,2]
[362125001,1748011762310,-164.85,0.00020796,2]
[362125002,1748011762331,-18871.31482052,0.00020796,2]
[362125005,1748011832073,-330.1407838,0.0002059,2]
[362125006,1748011832083,-5010.47236351,0.00020796,2]
[362125007,1748011832095,-44167.81281597,0.00020796,2]
[362125008,1748011832105,-187.34,0.0002084,2]
[362125009,1748011832115,-1047.82,0.00020852,2]
[362125010,1748011832125,-363.23,0.00020873,2]
[362125011,1748011832134,-156.41,0.00020897,2]
[362125012,1748011832144,-150.0,0.00020959,7]
[362125013,1748011832153,-23900.0,0.0002097,2]
[362125014,1748011832163,-417.69,0.00020986,2]
[362125015,1748011832172,-250.0,0.00021004,2]
[362125016,1748011832182,-3093.45907019,0.0002105,2]
[362125017,1748011832193,-1699.3316,0.0002105,2]
[362125018,1748011832209,-5207.20932981,0.0002105,2]
[362125019,1748011832218,-500.0,0.00021095,2]
[362125020,1748011832228,-250.0,0.00021135,2]
[362125021,1748011832237,-200.0,0.00021135,2]
[362125022,1748011832247,-165.54,0.00021222,2]
[362125023,1748011832256,-202.46,0.00021369,2]
[362125024,1748011832265,-163.49,0.00021475,2]
[362125026,1748011832274,-1225.49,0.00021477,2]
[362125028,1748011832284,-564.6292588,0.00021518,2]
[362125029,1748011832298,-435.3707412,0.00021518,2]
[362125030,1748011832309,-417.69,0.00021773,2]
[362125031,1748011832318,-250.0,0.0002189,2]
[362125032,1748011832328,-200.0,0.0002189,2]
[362125033,1748011832337,-458.45,0.00021947,2]
[362125034,1748011832347,-94.83497192,0.0002218,2]
[362125035,1748011832367,-112.16502808,0.0002218,2]
[362125036,1748011832376,-202.0,0.0002218,2]
[362125037,1748011832385,-357.47,0.00022192,2]
[362125038,1748011832394,-162.8,0.00022192,2]
[362125039,1748011832403,-400.50032385,0.00022192,2]
[362125047,1748011834169,201.2,0.00025,30]
[362125054,1748011838043,-1440.97967615,0.00022192,2]
[362125055,1748011838053,-78.02032385,0.00022192,2]
[362125056,1748011838067,-124.24967615,0.00022192,2]
[362125057,1748011838077,-226.31,0.00022236,2]
[362125058,1748011838087,-194.8,0.00022431,2]
[362125059,1748011838096,-194.30277314,0.00022466,2]
[362125060,1748011838186,-611.52722686,0.00022466,2]
[362125061,1748011838195,-170.17,0.00022468,2]
[362125062,1748011838206,-1299.10818,0.0002254,2]
[362125063,1748011838216,-417.69,0.0002256,2]
[362125064,1748011838226,-202.46,0.00022739,2]
[362125065,1748011838236,-3539.65485915,0.000229,2]
[362125066,1748011838246,-816.58711558,0.000229,8]
[362125068,1748011838255,-406.63959084,0.000229,8]
[362125125,1748011840118,-409.94752469,0.000229,8]
[362125126,1748011840133,-816.58711553,0.000229,8]
[362125127,1748011840143,-8462.37614541,0.000229,2]
[362125128,1748011840153,-309.40830503,0.000229,2]
[362125129,1748011840163,-172.98,0.00022968,2]
[362125130,1748011840172,-150.0,0.0002299,2]
[362125131,1748011840182,-150.0,0.0002299,2]